bitfinex/quotes_SOLUSD_20241215
["timestamp","ask_amount","ask_price","bid_price","bid_amount"]
[1734306181210,20.0,224.08,223.92,1.78434987]
[1734306181415,0.83703552,224.07,223.92,1.78434987]
[1734306181723,0.83703552,224.07,223.93,18.89250238]
[1734306181930,0.83688451,224.1,223.95,0.12549]
[1734306182644,0.83688451,224.1,223.97,24.027864]
[1734306182944,0.83688451,224.1,223.99,23.902374]
[1734306183718,6.4957,224.11,224.05,23.776884]
[1734306183922,1.5878,224.15,224.05,23.776884]
[1734306184128,1.5878,224.15,224.06,0.12549]
[1734306185231,1.5878,224.15,224.07,23.776884]
[1734306185542,1.5878,224.15,224.06,0.12549]
[1734306185728,6.5186,224.16,224.06,0.12549]
[1734306186957,0.836548,224.15,224.06,0.12549]
[1734306187263,6.5186,224.16,224.06,0.12549]
[1734306187654,6.5186,224.16,223.94,1.6286]
[1734306187655,20.0,224.13,223.94,1.6286]
[1734306187852,0.96229854,224.12,223.95,1.78409012]
[1734306188034,0.96229854,224.12,223.94,1.6286]
[1734306188234,0.83680854,224.12,223.95,0.12549]
[1734306188467,0.83680854,224.12,223.95,0.78432829]
[1734306188670,0.83680854,224.12,223.97,0.12549]
[1734306188967,0.83680854,224.12,223.97,21.90958012]
[1734306189271,7.52960854,224.12,223.97,20.0]
[1734306189572,7.52960854,224.12,223.95,0.65883829]
[1734306189573,0.12549,224.11,223.95,43.902374]
[1734306189757,0.83698304,224.1,223.95,43.902374]
[1734306189962,0.83698304,224.1,223.96,0.78454731]
[1734306190150,0.83698304,224.1,224.01,23.902374]
[1734306190467,0.83685171,224.11,224.01,23.902374]
[1734306190670,15.89540029,224.16,224.01,23.902374]
[1734306190671,0.83674422,224.15,224.01,23.902374]
[1734306192066,0.83674422,224.15,224.05,23.902374]
[1734306192791,6.5186,224.16,224.08,20.0]
[1734306192965,0.83659848,224.19,224.09,23.902374]
[1734306193290,1.5404,224.2,224.13,23.902374]
[1734306193788,0.83635054,224.19,224.12,0.12549]
[1734306193960,0.83635054,224.19,224.08,20.0]
[1734306193961,0.83635054,224.19,224.09,23.776884]
[1734306194280,6.691,224.18,224.03,20.0]
[1734306194601,0.83668646,224.17,224.04,0.12549]
[1734306194757,0.83668646,224.17,224.04,21.9094538]
[1734306194961,0.83659692,224.19,224.04,20.12549]
[1734306195560,2.376976,224.2,224.09,20.0]
[1734306195790,2.376976,224.2,224.11,20.0]
[1734306195791,1.5404,224.2,224.11,20.0]
[1734306196096,1.5404,224.2,224.13,0.12549]
[1734306196404,6.3959,224.21,224.13,0.12549]
[1734306197185,6.3959,224.21,224.16,0.12549]
[1734306199075,6.3959,224.21,224.16,23.902374]
[1734306199293,6.3959,224.21,224.16,0.12549]
[1734306199583,6.3959,224.21,224.16,23.902374]
[1734306201790,1.5786,224.25,224.16,23.902374]
[1734306202002,6.5393,224.27,224.2,23.902374]
[1734306203701,0.83608704,224.26,224.2,0.12549]
[1734306204496,6.5393,224.27,224.2,0.12549]
[1734306205000,6.5393,224.27,224.15,20.0]
[1734306205001,0.83610045,224.26,224.15,20.0]
[1734306205605,0.83610045,224.26,224.08,0.65754499]
[1734306205606,7.52470045,224.26,224.08,0.65754499]
[1734306206273,20.0,224.23,224.07,1.78362216]
[1734306206473,20.0,224.23,224.05,1.78362216]
[1734306206474,1.5578,224.21,224.05,1.78362216]
[1734306206672,0.83654343,224.2,224.05,1.78362216]
[1734306206969,0.83654343,224.2,224.06,0.12549]
[1734306207396,0.83654343,224.2,224.05,2.44189724]
[1734306208013,0.83654343,224.2,224.1,44.027864]
[1734306208185,1.5578,224.21,224.13,0.12549]
[1734306208382,0.83639407,224.2,224.13,0.12549]
[1734306209716,1.5578,224.21,224.13,0.12549]
[1734306210500,20.0,224.24,224.12,0.12549]
[1734306210501,0.83633194,224.23,224.12,0.12549]
[1734306211287,2.41961774,224.26,224.15,0.25098]
[1734306211482,1.5833,224.26,224.15,24.68538247]
[1734306211885,1.5833,224.26,224.18,20.0]
[1734306212087,1.5833,224.26,224.2,0.12549]
[1734306212497,6.5393,224.27,224.2,0.12549]
[1734306212706,0.8361654,224.31,224.2,0.12549]
[1734306212707,1.5833,224.31,224.2,0.12549]
[1734306212901,0.83604805,224.3,224.2,0.12549]
[1734306213294,0.83604805,224.3,224.19,24.43429041]
[1734306213295,0.83604805,224.3,224.19,0.12549]
[1734306213618,7.52344805,224.3,224.19,0.12549]
[1734306214189,7.52344805,224.3,224.14,23.902374]
[1734306214391,20.83604805,224.3,224.18,23.902374]
[1734306214819,6.81319,224.29,224.16,20.0]
[1734306215014,6.81319,224.29,224.12,20.0]
[1734306215015,0.12549,224.27,224.12,20.0]
[1734306215197,0.83638105,224.26,224.12,20.0]
[1734306216326,0.83627173,224.25,224.13,23.902374]
[1734306216524,20.0,224.3,224.13,23.902374]
[1734306216525,6.6886,224.26,224.13,23.902374]
[1734306216730,0.83641587,224.25,224.09,6.5805]
[1734306216897,20.0,224.23,224.09,6.5805]
[1734306217220,0.83649414,224.22,224.09,6.5805]
[1734306218628,0.83649414,224.22,224.07,21.5283]
[1734306218928,0.83658237,224.26,224.15,23.902374]
[1734306219135,0.83632653,224.25,224.14,20.0]
[1734306219424,0.83632653,224.25,224.11,20.0]
[1734306219618,0.83632653,224.25,224.15,20.0]
[1734306220006,0.83637876,224.24,224.15,20.0]
[1734306220713,6.049,224.27,224.15,20.0]
[1734306220928,0.836307,224.26,224.16,23.902374]
[1734306221114,0.836307,224.27,224.19,20.0]
[1734306221299,1.5878,224.28,224.15,0.12549]
[1734306221300,0.83612938,224.25,224.15,0.12549]
[1734306221499,1.5878,224.28,224.17,23.902374]
[1734306221500,0.8362454,224.27,224.17,23.902374]
[1734306222428,0.8362454,224.27,224.16,20.0]
[1734306222733,0.8362454,224.27,224.14,23.902374]
[1734306223101,0.8362454,224.27,224.17,20.0]
[1734306224205,0.8362454,224.27,224.14,23.902374]
[1734306224407,20.8362454,224.27,224.14,23.902374]
[1734306224620,20.8362454,224.27,224.11,18.76701238]
[1734306224621,20.8362454,224.27,224.15,20.0]
[1734306225328,20.8362454,224.27,224.12,0.12549]
[1734306225532,0.8362454,224.27,224.15,23.776884]
[1734306225825,0.8362454,224.27,224.12,0.12549]
[1734306225826,7.5246454,224.27,224.12,0.25098]
[1734306226030,0.8362454,224.27,224.16,0.12549]
[1734306226942,0.8362454,224.27,224.17,10.16476358]
[1734306227126,0.8362454,224.27,224.18,23.776884]
[1734306227314,6.049,224.32,224.2,23.776884]
[1734306227506,0.83602189,224.31,224.21,0.12549]
[1734306228220,0.83602189,224.31,224.21,0.78259428]
[1734306228424,0.83598405,224.34,224.26,23.776884]
[1734306228622,6.2208,224.38,224.26,23.776884]
[1734306228623,6.2208,224.38,224.28,23.776884]
[1734306228918,0.83574573,224.37,224.28,23.776884]
[1734306229121,0.83574573,224.37,224.29,20.0]
[1734306229432,0.83574573,224.37,224.3,23.776884]
[1734306229603,0.83574573,224.37,224.26,0.12549]
[1734306230139,0.83574573,224.37,224.26,23.776884]
[1734306231537,20.0,224.35,224.18,18.76701238]
[1734306231741,20.83609055,224.34,224.22,23.776884]
[1734306232129,20.83609055,224.34,224.16,18.76701238]
[1734306232319,20.83609055,224.34,224.17,0.12549]
[1734306232520,20.83609055,224.34,224.18,18.76701238]
[1734306233014,20.83609055,224.34,224.21,20.0]
[1734306233623,7.52249055,224.34,224.22,23.776884]
[1734306233824,0.83609055,224.34,224.23,0.12549]
[1734306234235,0.83609055,224.34,224.22,23.776884]
[1734306236332,0.12549,224.33,224.21,20.0]
[1734306236645,1.5878,224.31,224.2,23.776884]
[1734306236946,0.83612252,224.3,224.2,23.776884]
[1734306237517,1.5878,224.31,224.2,43.20113467]
[1734306237846,0.83606201,224.34,224.22,18.76701238]
[1734306238016,0.83606201,224.34,224.23,23.776884]
[1734306238619,0.83590483,224.35,224.23,23.776884]
[1734306241164,0.8358922,224.37,224.27,43.776884]
[1734306241444,1.5878,224.42,224.3,18.76701238]
[1734306241660,1.5878,224.42,224.35,43.776884]
[1734306241816,6.4575,224.44,224.35,23.776884]
[1734306242015,7.29300532,224.44,224.34,23.776884]
[1734306242254,6.4575,224.44,224.34,23.776884]
[1734306243629,0.83551701,224.47,224.35,19.42316054]
[1734306243943,0.83551701,224.47,224.36,42.54389638]
[1734306244547,0.83551701,224.47,224.36,23.776884]
[1734306244946,2.42320239,224.48,224.38,23.776884]
[1734306245744,5.0,224.6,224.37,18.76701238]
[1734306245745,1.5706,224.53,224.42,42.54389638]
[1734306245963,7.44036849,224.55,224.44,42.54389638]
[1734306246741,6.605,224.55,224.45,0.65536189]
[1734306246936,6.605,224.55,224.46,23.776884]
[1734306246937,0.8350936,224.54,224.46,23.776884]
[1734306247666,6.605,224.55,224.45,23.776884]
[1734306248488,6.605,224.55,224.45,42.54389638]
[1734306248961,2.40566509,224.58,224.47,18.76701238]
[1734306249143,7.27586509,224.6,224.48,18.76701238]
[1734306249343,7.27586509,224.6,224.49,23.776884]
[1734306249557,7.27586509,224.6,224.48,23.776884]
[1734306250632,7.27586509,224.6,224.5,0.25098]
[1734306250833,0.83495933,224.62,224.51,23.776884]
[1734306251050,0.83494166,224.61,224.51,23.776884]
[1734306251561,0.83494166,224.61,224.48,18.76701238]
[1734306251735,0.83494166,224.61,224.41,18.76701238]
[1734306251937,0.25098,224.6,224.4,18.76701238]
[1734306252137,0.25098,224.58,224.39,18.76701238]
[1734306252351,0.83529947,224.57,224.4,1.78114046]
[1734306252555,0.83529947,224.57,224.4,2.73284428]
[1734306252762,0.83529947,224.57,224.4,23.28099711]
[1734306253060,0.12549,224.55,224.4,18.76701238]
[1734306253264,0.12549,224.55,224.32,16.26416867]
[1734306253265,0.12549,224.53,224.32,16.43466609]
[1734306253437,0.9609097,224.53,224.35,18.76701238]
[1734306253642,0.9609097,224.53,224.36,20.54851254]
[1734306253843,0.9609097,224.53,224.36,18.76701238]
[1734306254160,0.9609097,224.53,224.37,0.12549]
[1734306254360,7.6416097,224.53,224.36,18.76701238]
[1734306254667,7.6416097,224.53,224.4,20.0]
[1734306256167,7.6416097,224.53,224.41,23.776884]
[1734306256168,7.5161197,224.53,224.41,23.776884]
[1734306257259,7.5161197,224.53,224.4,20.0]
[1734306257847,7.5161197,224.53,224.35,2.65416623]
[1734306257848,7.5161197,224.53,224.38,18.76701238]
[1734306258049,7.5161197,224.53,224.4,23.776884]
[1734306258733,7.5161197,224.53,224.39,23.902374]
[1734306259548,7.5161197,224.53,224.41,23.776884]
[1734306260540,7.5161197,224.53,224.41,20.0]
[1734306260738,20.0,224.5,224.34,18.76701238]
[1734306260942,0.83550521,224.49,224.34,18.76701238]
[1734306261567,0.83550521,224.49,224.35,0.12549]
[1734306261867,0.83548211,224.48,224.35,0.12549]
[1734306262075,0.83548211,224.48,224.38,23.776884]
[1734306262244,0.83548211,224.48,224.34,18.76701238]
[1734306262868,0.83551734,224.47,224.34,18.76701238]
[1734306263442,0.83551734,224.47,224.35,23.776884]
[1734306263947,0.83549525,224.46,224.35,23.776884]
[1734306264148,6.6821,224.48,224.34,23.776884]
[1734306264370,0.83560098,224.47,224.32,23.776884]
[1734306264548,0.83560098,224.47,224.35,20.0]
[1734306264943,0.83560098,224.47,224.31,23.776884]
[1734306265277,0.83560098,224.47,224.32,25.5587489]
[1734306265451,0.83560098,224.47,224.34,23.776884]
[1734306265846,0.83560098,224.47,224.33,23.776884]
[1734306266775,7.51770098,224.47,224.33,23.776884]
[1734306266957,7.51770098,224.47,224.42,23.776884]
[1734306266958,6.6821,224.47,224.42,23.776884]
[1734306267163,0.83560912,224.5,224.42,23.776884]
[1734306267882,6.1299,224.51,224.42,43.19963841]
[1734306268079,6.1299,224.51,224.42,35.46474451]
[1734306269980,6.1299,224.51,224.42,42.47794668]
[1734306270278,0.83524014,224.5,224.42,42.47794668]
[1734306271391,1.5878,224.54,224.45,20.0]
[1734306271551,1.5878,224.54,224.45,23.776884]
[1734306273158,5.0,224.64,224.45,23.776884]
[1734306273159,1.38263156,224.65,224.53,18.70106268]
[1734306273461,1.38263156,224.65,224.47,11.1373]
[1734306273462,0.83513176,224.63,224.54,23.776884]
[1734306274077,0.83513176,224.63,224.52,23.776884]
[1734306274265,0.83488783,224.62,224.52,23.776884]
[1734306274582,0.83489366,224.64,224.52,23.776884]
[1734306275262,0.83489366,224.64,224.54,23.776884]
[1734306275767,0.83489366,224.64,224.52,23.776884]
[1734306276086,0.83489366,224.64,224.51,18.70106268]
[1734306276087,0.83489366,224.64,224.53,1.78047039]
[1734306276287,0.83489366,224.64,224.51,23.776884]
[1734306276789,0.83489366,224.64,224.5,20.0]
[1734306276978,0.83489366,224.64,224.47,18.70106268]
[1734306277203,0.83489366,224.64,224.43,18.70106268]
[1734306277204,6.0478,224.62,224.43,18.70106268]
[1734306277485,20.0,224.59,224.44,1.780871]
[1734306277690,0.8351723,224.58,224.43,1.780871]
[1734306277858,0.8351723,224.58,224.42,1.780871]
[1734306278187,0.8351723,224.58,224.42,18.70106268]
[1734306278388,0.8351723,224.58,224.47,18.70106268]
[1734306278587,0.83498672,224.61,224.47,18.70106268]
[1734306278752,0.83498672,224.61,224.46,18.70106268]
[1734306279689,0.83498672,224.61,224.47,23.776884]
[1734306281365,0.83498672,224.61,224.47,42.47794668]
[1734306287683,0.83498672,224.61,224.45,1.90327704]
[1734306287684,7.51328672,224.61,224.45,18.70106268]
[1734306287902,7.51328672,224.61,224.48,20.0]
[1734306288801,0.25098,224.6,224.42,6.11851713]
[1734306289001,20.25098,224.58,224.42,1.78106514]
[1734306289199,0.25098,224.54,224.38,1.7814005]
[1734306289388,0.12549,224.52,224.38,1.7814005]
[1734306289600,0.83547698,224.51,224.37,1.7814005]
[1734306289801,7.51667698,224.51,224.36,12.07793024]
[1734306290023,0.83547698,224.51,224.37,19.35708592]
[1734306290179,0.83547698,224.51,224.4,18.70106268]
[1734306290384,0.83524851,224.54,224.39,19.35667398]
[1734306290608,0.83524851,224.54,224.4,23.776884]
[1734306291593,0.83524851,224.54,224.41,18.82655268]
[1734306291799,0.83524851,224.54,224.42,42.47794668]
[1734306292012,0.12549,224.6,224.42,23.776884]
[1734306292190,20.0,224.58,224.42,23.776884]
[1734306292510,20.0,224.58,224.4,11.68733083]
[1734306292511,20.0,224.58,224.41,23.776884]
[1734306293217,20.0,224.58,224.41,11.68733083]
[1734306293557,20.0,224.58,224.42,23.776884]
[1734306294029,20.0,224.58,224.38,11.68733083]
[1734306294030,20.0,224.54,224.38,11.68733083]
[1734306294182,0.25098,224.53,224.37,6.11851713]
[1734306294382,0.25098,224.53,224.34,2.71225687]
[1734306295093,0.12549,224.51,224.34,2.71225687]
[1734306295419,6.6815,224.5,224.34,2.71225687]
[1734306295598,0.12549,224.49,224.33,3.41473064]
[1734306295788,20.0,224.47,224.32,12.07793024]
[1734306296699,0.12549,224.46,224.32,12.07793024]
[1734306298411,26.6826,224.47,224.33,23.776884]
[1734306298602,0.12549,224.46,224.32,12.07793024]
[1734306299243,0.12549,224.41,224.25,5.95941311]
[1734306299403,0.12549,224.41,224.25,12.07793024]
[1734306299604,6.6844,224.4,224.25,12.07793024]
[1734306299945,20.0,224.41,224.26,12.35601295]
[1734306300100,20.0,224.41,224.26,6.78719925]
[1734306300306,20.0,224.41,224.26,6.11851713]
[1734306300504,20.0,224.42,224.26,6.11851713]
[1734306300729,0.12549,224.41,224.26,6.11851713]
[1734306301113,0.25098,224.41,224.26,6.11851713]
[1734306301317,6.93508,224.41,224.26,6.11851713]
[1734306301621,5.9006,224.36,224.26,6.11851713]
[1734306301818,5.9006,224.36,224.17,1.5104]
[1734306301819,0.12549,224.35,224.21,6.11851713]
[1734306302026,5.9006,224.36,224.22,5.95941311]
[1734306302204,5.9006,224.36,224.22,12.07793024]
[1734306303441,26.17821248,224.5,224.26,40.14]
[1734306303655,5.9006,224.6,224.41,20.0]
[1734306303811,5.9006,224.6,224.41,11.68733083]
[1734306304016,5.9006,224.6,224.42,23.776884]
[1734306304333,5.9006,224.6,224.44,23.776884]
[1734306304509,5.9006,224.6,224.43,20.0]
[1734306304843,5.9006,224.6,224.44,23.776884]
[1734306305046,5.9006,224.6,224.45,0.12549]
[1734306305230,5.9006,224.6,224.46,23.776884]
[1734306305410,5.9006,224.6,224.46,24.44488468]
[1734306305830,5.9006,224.6,224.5,23.776884]
[1734306306521,5.9006,224.6,224.49,23.776884]
[1734306306840,5.9006,224.6,224.44,0.66787175]
[1734306307012,12.5792,224.6,224.44,20.0]
[1734306307212,12.5792,224.6,224.45,20.0]
[1734306307731,12.5792,224.6,224.44,20.0]
[1734306308439,12.5792,224.6,224.45,23.776884]
[1734306308955,12.5792,224.6,224.41,23.776884]
[1734306308956,0.12549,224.59,224.41,23.776884]
[1734306309257,0.12549,224.59,224.32,27.2889]
[1734306309258,0.12549,224.57,224.37,25.34527579]
[1734306309426,0.12549,224.57,224.38,1.78125742]
[1734306310209,6.6797,224.56,224.38,1.78125742]
[1734306310440,6.6797,224.56,224.4,23.776884]
[1734306311314,0.12549,224.55,224.4,23.776884]
[1734306311927,0.5474998,224.65,224.53,20.0]
[1734306312127,0.5474998,224.65,224.54,19.35615926]
[1734306312520,0.5474998,224.65,224.55,23.776884]
[1734306313540,0.5474998,224.65,224.54,0.66778347]
[1734306313923,0.5474998,224.65,224.53,23.776884]
[1734306314127,0.5474998,224.65,224.55,0.667853]
[1734306315054,0.5474998,224.65,224.54,0.66784999]
[1734306315429,0.5474998,224.65,224.49,18.68837579]
[1734306315619,0.12549,224.62,224.47,0.66795239]
[1734306315823,0.12549,224.62,224.41,11.1399]
[1734306315824,0.12549,224.62,224.45,18.68837579]
[1734306316018,0.12549,224.62,224.46,0.66804348]
[1734306316213,0.12549,224.62,224.46,19.35641927]
[1734306316523,6.6782,224.61,224.46,19.35641927]
[1734306316927,20.0,224.62,224.5,18.68837579]
[1734306317126,20.0,224.62,224.51,0.66789521]
[1734306317733,7.2244998,224.65,224.52,23.776884]
[1734306317922,7.2244998,224.65,224.53,0.66787003]
[1734306318130,0.5474998,224.65,224.54,23.776884]
[1734306318551,0.5474998,224.65,224.55,0.66782558]
[1734306318920,0.5474998,224.65,224.54,23.776884]
[1734306323602,0.5474998,224.65,224.55,0.66782561]
[1734306323768,0.5474998,224.65,224.56,23.776884]
[1734306324064,0.5474998,224.65,224.54,20.0]
[1734306324561,0.5474998,224.65,224.54,20.66786396]
[1734306325069,0.5474998,224.65,224.55,23.776884]
[1734306326365,0.5474998,224.65,224.56,0.66776504]
[1734306327575,0.5474998,224.65,224.57,23.776884]
[1734306327874,0.5474998,224.65,224.59,23.776884]
[1734306328256,0.5474998,224.65,224.57,23.776884]
[1734306329569,0.5474998,224.65,224.53,22.80672537]
[1734306329570,0.5474998,224.65,224.53,23.776884]
[1734306329786,0.5474998,224.65,224.52,2.33203287]
[1734306330862,0.5474998,224.65,224.58,20.0]
[1734306331116,0.5474998,224.65,224.59,23.776884]
[1734306331868,0.5474998,224.65,224.57,23.776884]
[1734306332770,0.5474998,224.65,224.55,43.776884]
[1734306333067,0.5474998,224.65,224.56,0.66776014]
[1734306333270,0.5474998,224.65,224.55,43.776884]
[1734306333571,0.5474998,224.65,224.55,23.776884]
[1734306333745,0.5474998,224.65,224.53,0.66777945]
[1734306334269,0.5474998,224.65,224.51,0.6678834]
[1734306334464,7.2245998,224.65,224.51,0.6678834]
[1734306335263,7.2245998,224.65,224.5,0.66790624]
[1734306335665,7.2245998,224.65,224.51,23.776884]
[1734306336096,7.2245998,224.65,224.52,0.66789141]
[1734306336270,7.2245998,224.65,224.53,23.776884]
[1734306336552,7.2245998,224.65,224.54,0.66781452]
[1734306336956,0.5474998,224.65,224.55,23.776884]
[1734306338265,0.5474998,224.65,224.54,23.776884]
[1734306338655,0.5474998,224.65,224.55,0.66779552]
[1734306339150,0.12549,224.62,224.45,10.00975716]
[1734306339352,0.12549,224.58,224.45,10.00975716]
[1734306339568,0.25098,224.58,224.45,10.00975716]
[1734306339774,0.25098,224.58,224.39,1.7810236]
[1734306340095,0.25098,224.58,224.39,0.66821782]
[1734306340463,0.12549,224.56,224.39,2.44939888]
[1734306340660,0.12549,224.56,224.39,0.66821782]
[1734306341088,0.12549,224.56,224.4,23.776884]
[1734306342185,6.6794,224.57,224.42,23.776884]
[1734306342606,6.6794,224.57,224.4,18.7050205]
[1734306342607,6.6794,224.57,224.41,24.44505231]
[1734306343701,0.12549,224.56,224.41,24.44505231]
[1734306344596,6.68,224.55,224.41,24.44505231]
[1734306344913,6.68,224.55,224.35,10.29901654]
[1734306344914,0.12549,224.53,224.35,1.5693]
[1734306345206,0.12549,224.53,224.35,4.01907677]
[1734306345498,0.12549,224.53,224.35,2.23763371]
[1734306345696,0.12549,224.53,224.35,20.94265421]
[1734306345871,6.6809,224.52,224.35,20.94265421]
[1734306346068,6.6809,224.52,224.36,23.776884]
[1734306347005,6.6809,224.52,224.37,0.66832331]
[1734306347183,6.6809,224.52,224.38,42.4819045]
[1734306347502,6.6809,224.52,224.4,23.776884]
[1734306348884,6.6809,224.52,224.41,1.78122358]
[1734306349081,6.6809,224.52,224.36,18.7050205]
[1734306349282,6.6809,224.52,224.37,21.78130612]
[1734306349500,6.6809,224.52,224.38,1.78130612]
[1734306349697,6.6809,224.52,224.33,9.70101894]
[1734306349698,0.25098,224.49,224.33,9.70101894]
[1734306350105,20.0,224.47,224.33,9.70101894]
[1734306350318,20.0,224.42,224.27,1.78168667]
[1734306350611,0.25098,224.41,224.25,1.78168667]
[1734306350777,0.25098,224.41,224.2,27.15993635]
[1734306350778,0.25098,224.39,224.21,1.78257054]
[1734306350982,0.25098,224.39,224.2,4.01778639]
[1734306351189,0.25098,224.39,224.19,31.05397756]
[1734306351902,0.12549,224.37,224.22,20.0]
[1734306352204,6.685,224.38,224.23,0.66879526]
[1734306352407,5.9006,224.4,224.24,23.776884]
[1734306354208,0.12549,224.39,224.24,23.776884]
[1734306354706,0.12549,224.37,224.19,12.34895706]
[1734306354906,0.25098,224.34,224.19,1.78266409]
[1734306355088,0.25098,224.34,224.14,28.41385631]
[1734306355287,0.12549,224.29,224.15,1.78301027]
[1734306355497,0.12549,224.29,224.14,9.70883581]
[1734306356911,20.0,224.25,224.14,9.70883581]
[1734306358604,20.0,224.2,224.04,1.6199]
[1734306358996,20.0,224.2,224.05,0.12549]
[1734306359310,20.0,224.2,224.04,1.6199]
[1734306360213,20.0,224.2,224.05,0.12549]
[1734306360398,20.0,224.2,224.04,1.6199]
[1734306360399,0.12549,224.19,224.04,1.6199]
[1734306360573,20.0,224.16,224.02,18.7050205]
[1734306360777,20.0,224.16,224.0,0.66925617]
[1734306360778,20.0,224.16,224.01,18.7050205]
[1734306360972,20.0,224.16,224.0,0.66925617]
[1734306361217,5.9006,224.23,224.0,0.66925617]
[1734306361218,20.0,224.2,224.06,18.7050205]
[1734306361410,12.5902,224.23,224.06,18.7050205]
[1734306361712,5.9006,224.23,224.08,0.12549]
[1734306362078,5.9006,224.23,224.09,0.66918063]
[1734306362284,5.9006,224.23,224.09,24.44606463]
[1734306362484,5.9006,224.23,224.09,43.15108513]
[1734306362784,0.12549,224.22,224.1,18.7050205]
[1734306363009,5.9006,224.23,224.14,20.0]
[1734306363377,5.9006,224.23,224.11,0.66915138]
[1734306363693,5.9006,224.23,224.09,23.776884]
[1734306363881,5.9006,224.23,224.04,18.7050205]
[1734306363882,0.12549,224.22,224.04,18.7050205]
[1734306364075,0.12549,224.22,224.01,11.1601]
[1734306364076,6.81529,224.22,224.05,18.7050205]
[1734306364318,0.25098,224.18,224.03,18.7050205]
[1734306364510,0.25098,224.18,224.01,18.7050205]
[1734306364689,0.25098,224.18,223.99,0.66927283]
[1734306364690,0.25098,224.18,224.02,19.37439658]
[1734306364904,0.25098,224.18,224.02,0.66937608]
[1734306365629,0.25098,224.18,223.98,1.609]
[1734306365630,6.691,224.18,224.0,23.776884]
[1734306365777,0.12549,224.14,223.99,0.66937411]
[1734306366683,0.12549,224.14,224.0,0.12549]
[1734306366882,20.0,224.2,224.03,18.7050205]
[1734306367119,20.0,224.2,224.04,23.776884]
[1734306367286,20.0,224.2,224.03,23.902374]
[1734306367491,23.902374,224.19,224.03,23.776884]
[1734306367725,20.0,224.2,224.04,0.66940354]
[1734306367931,20.0,224.2,224.05,23.776884]
[1734306368139,12.5904,224.23,224.08,23.902374]
[1734306368424,5.9006,224.23,224.04,23.776884]
[1734306368656,0.12549,224.22,224.04,23.776884]
[1734306369126,6.81529,224.22,224.04,23.776884]
[1734306369294,6.81529,224.22,224.03,23.776884]
[1734306369491,20.0,224.19,224.03,23.776884]
[1734306369725,0.12549,224.17,224.03,23.776884]
[1734306370028,0.12549,224.17,224.04,0.73]
[1734306370029,24.027864,224.17,224.04,0.73]
[1734306370327,0.12549,224.11,223.95,0.66946372]
[1734306370632,0.12549,224.11,223.97,18.7050205]
[1734306370933,0.12549,224.11,223.98,0.73]
[1734306371108,0.12549,224.11,223.97,18.7050205]
[1734306371812,0.12549,224.11,223.98,23.776884]
[1734306372131,0.12549,224.11,223.98,42.4819045]
[1734306372293,0.12549,224.11,223.93,1.5865]
[1734306372294,20.0,224.08,223.93,1.5865]
[1734306372516,20.0,224.04,223.91,1.78464654]
[1734306372745,20.0,224.04,223.87,1.6091]
[1734306372947,20.0,224.04,223.87,3.39374654]
[1734306373110,20.0,224.04,223.87,1.6091]
[1734306373545,26.6953,224.04,223.85,1.78464654]
[1734306373752,26.6953,224.04,223.85,20.48966704]
[1734306373925,26.6953,224.04,223.86,1.78464654]
[1734306374124,26.6953,224.04,223.87,18.7050205]
[1734306374318,26.6953,224.04,223.86,1.78464654]
[1734306374319,20.0,224.04,223.89,18.8305105]
[1734306374517,20.0,224.04,223.95,0.12549]
[1734306375317,20.0,224.04,223.9,0.6696926]
[1734306375318,20.0,224.04,223.9,18.7050205]
[1734306375546,20.0,224.04,223.92,20.0]
[1734306375933,20.0,224.04,223.93,0.12549]
[1734306376526,6.6946,224.06,223.93,20.12549]
[1734306377119,5.9006,224.07,223.95,0.12549]
[1734306377345,5.9006,224.07,223.98,0.12549]
[1734306377661,5.9006,224.07,223.98,24.027864]
[1734306378824,5.9006,224.07,223.98,0.12549]
[1734306379036,5.9006,224.07,223.96,20.0]
[1734306379227,5.9006,224.07,223.98,0.12549]
[1734306380038,5.9006,224.07,223.93,20.0]
[1734306380361,5.9006,224.07,223.94,0.25098]
[1734306380534,5.9006,224.07,223.94,0.12549]